fUSD/lending_fUSD_20241226
["ID","MTS","AMOUNT","RATE_DAILY","PERIOD"]
[346708588,1735222233228,-150.0,0.00017903,2]
[346708590,1735222233238,-150.0,0.00017991,2]
[346708592,1735222233248,-115443.97901688,0.00018,2]
[346708594,1735222233262,-58235.02098312,0.00018,2]
[346708596,1735222233271,-280.24438677,0.0001805,2]
[346708598,1735222233281,-150.0,0.0001815,2]
[346708600,1735222233292,-500.0,0.000182,6]
[346708602,1735222233302,-150.0,0.00018256,2]
[346708604,1735222233312,-1000.0,0.000183,6]
[346708606,1735222233322,-500.0,0.00018374,2]
[346708608,1735222233332,-1500.0,0.000184,6]
[346708610,1735222233342,-5.99161777,0.0001842,2]
[346708624,1735222233459,-3142.25257004,0.0001842,2]
[346708626,1735222233472,-397.500005,0.0001842,2]
[346708628,1735222233484,-442.44257368,0.0001842,2]
[346708634,1735222233535,-1312.28618262,0.0001842,2]
[346709041,1735222237638,-3740.24155622,0.0001842,2]
[346709042,1735222237653,-6083.62022573,0.0001842,2]
[346709043,1735222237665,-2030.10961496,0.0001842,2]
[346709044,1735222237676,-1543.27941072,0.0001842,2]
[346709045,1735222237722,-17000.00000005,0.0001842,2]
[346709046,1735222237734,-19600.0,0.0001842,2]
[346709053,1735222237980,-3879.21932008,0.0001842,2]
[346709055,1735222237991,-9245.51527294,0.0001842,2]
[346709112,1735222239727,-1135.5,0.0001842,2]
[346709113,1735222239738,-6561.600063,0.0001842,2]
[346709114,1735222240008,-276.26530975,0.0001842,2]
[346709115,1735222240021,-5648.22,0.0001842,2]
[346709116,1735222240033,-816.61,0.0001842,2]
[346709117,1735222240068,-2526.81747744,0.0001842,2]
[346709118,1735222240078,-173.633,0.00018422,2]
[346709119,1735222240088,-162.4983995,0.00018422,2]
[346709120,1735222240098,-175.9437291,0.00018422,2]
[346709121,1735222240109,-1308.47747057,0.00018432,10]
[346709122,1735222240118,-86620.0,0.00018493,2]
[346709123,1735222240127,-4401.71769345,0.00018493,2]
[346709124,1735222240184,-3433.28230655,0.00018493,2]
[346709125,1735222240193,-277.39086107,0.00018493,2]
[346709139,1735222240386,-2533.87381425,0.00018493,2]
[346709141,1735222240397,-1178.345,0.00018493,2]
[346709219,1735222243944,-1032.0,0.00018493,2]
[346709220,1735222243972,-3876.39032468,0.00018493,2]
[346709221,1735222243982,-5689.38699332,0.000185,2]
[346709222,1735222244036,-1447.78479097,0.000185,2]
[346709223,1735222244048,-769.45156274,0.000185,2]
[346709224,1735222244062,-2104.8288353,0.000185,2]
[346709225,1735222244072,-202.6,0.000185,2]
[346709226,1735222244081,-1212.0,0.000185,6]
[346709227,1735222244091,-1325.2670213,0.000185,2]
[346709228,1735222244100,-373.3041434,0.000185,6]
[346709229,1735222244112,-522.8,0.000185,6]
[346709231,1735222245822,-440.62948638,0.000185,6]
[346709232,1735222245834,-334.76241483,0.000185,6]
[346709233,1735222245845,-428.50395539,0.000185,6]
[346709234,1735222245855,-82.43325461,0.00018516,2]
[346709235,1735222245867,-1642.56674539,0.00018516,2]
[346709236,1735222245876,-282.72247137,0.00018521,2]
[346709237,1735222245885,-215.87077043,0.00018521,2]
[346709238,1735222245895,-150.0,0.00018521,2]
[346709239,1735222245904,-427.12164042,0.00018521,2]
[346709240,1735222245914,-500.0,0.00018521,2]
[346709241,1735222245923,-376.7622718,0.00018521,2]
[346709242,1735222245933,-500.0,0.00018521,2]
[346709243,1735222245943,-500.0,0.00018521,2]
[346709244,1735222245952,-1992.19627137,0.00018522,2]
[346709245,1735222245962,-10021.17632641,0.00018522,2]
[346709246,1735222245973,-20820.98377895,0.00018522,2]
[346709247,1735222245984,-17452.2427031,0.00018522,2]
[346709248,1735222245995,-254.0389,0.00018522,2]
[346709249,1735222246007,-411.866,0.00018522,2]
[346709250,1735222246035,-608.35712949,0.00018522,2]
[346709251,1735222246046,-6496.98019051,0.00018522,2]
[346709252,1735222246058,-700.60663914,0.00018522,2]
[346709253,1735222246069,-19766.26288159,0.00018522,2]
[346709258,1735222246131,-92853.89456873,0.00018522,2]
[346709263,1735222246174,-2495.0001,0.00018522,2]
[346709265,1735222246186,-4796.199487,0.00018522,2]
[346709267,1735222246196,-447.77995139,0.00018522,2]
[346709275,1735222910430,250.0,0.0002,120]
[346709331,1735223432172,-162.83,0.00010137,2]
[346709332,1735223432182,-300.0,0.000126,4]
[346709333,1735223432192,-600.0,0.000127,4]
[346709334,1735223432201,-277.15293313,0.0001277,2]
[346709335,1735223432220,-1000.0,0.000128,4]
[346709336,1735223432231,-277.15293312,0.000128,2]
[346709337,1735223432241,-4117.0,0.0001287,2]
[346709338,1735223432251,-181.0783294,0.000129,4]
[346709339,1735223432264,-307.8334,0.000129,4]
[346709340,1735223432278,-496.86092717,0.000129,4]
[346709341,1735223432290,-314.22734343,0.000129,4]
[346709342,1735223432300,-300.0,0.00012972,2]
[346709343,1735223432310,-500.74888959,0.00012973,2]
[346709344,1735223432320,-337.30687509,0.00012973,2]
[346709350,1735223432380,-162.90087451,0.00012973,2]
[346709352,1735223432389,-500.0,0.00012973,2]
[346709353,1735223432399,-384.40947638,0.00012999,2]
[346709354,1735223432410,-500.0,0.00012999,2]
[346709355,1735223432420,-62.79147431,0.00012999,2]
[346709356,1735223432432,-437.20852569,0.00012999,2]
[346709357,1735223432442,-376.76227181,0.00012999,2]
[346709358,1735223432451,-13884.6192025,0.00012999,2]
[346709359,1735223432463,-1196.5,0.00012999,2]
[346709360,1735223432474,-1085.50905,0.00012999,2]
[346709361,1735223432486,-2727.3619961,0.00012999,2]
[346709362,1735223432497,-12443.55279638,0.00012999,2]
[346709363,1735223432509,-1230.44480407,0.00012999,2]
[346709364,1735223432521,-1812.896085,0.00012999,2]
[346709365,1735223432534,-579.1131891,0.00012999,2]
[346709366,1735223432545,-487.25,0.00012999,2]
[346709367,1735223432561,-3720.38228095,0.00012999,2]
[346709368,1735223432570,-996.09813569,0.00013,2]
[346709369,1735223432580,-3953.07477929,0.00013,2]
[346709370,1735223432592,-5290.54649963,0.00013,2]
[346709371,1735223432738,-47976.88093807,0.00013,2]
[346709372,1735223432750,-55199.1927026,0.00013,2]
[346709373,1735223432762,-351.63663388,0.00013,2]
[346709374,1735223432774,-3835.68,0.00013,2]
[346709375,1735223432787,-119860.89970771,0.00013,2]
[346709376,1735223432800,-59321.25698766,0.00013,2]
[346709377,1735223432814,-47986.0,0.00013,2]
[346709378,1735223432826,-10462.10300014,0.00013,2]
[346709381,1735223438013,-2874.89235073,0.00013,2]
[346709382,1735223438024,-1067.9999996,0.00013,2]
[346709383,1735223438055,-1268.12500435,0.00013,2]
[346709384,1735223438066,-739.73230278,0.00013,2]
[346709385,1735223438078,-1678.48193233,0.00013,2]
[346709386,1735223438119,-893.03835,0.00013,2]
[346709393,1735223438224,-4312.38593008,0.00013,2]
[346709395,1735223438235,-735.90293535,0.00013,2]
[346709398,1735223438246,-439.64747959,0.00013,2]
[346709405,1735223438308,-1433.66799544,0.00013,2]
[346709518,1735223440028,-1086.00001,0.00013,2]
[346709519,1735223440201,-6905.45253584,0.00013,2]
[346709520,1735223440212,-15347.92244726,0.00013,2]
[346709521,1735223440224,-500.00608853,0.00013,2]
[346709522,1735223440236,-974.53,0.00013,2]
[346709523,1735223440264,-333.45971535,0.00013,2]
[346709524,1735223440276,-536.30934444,0.00013,2]
[346709525,1735223440306,-294.766356,0.00013,2]
[346709526,1735223440319,-1042.36436997,0.00013,2]
[346709527,1735223440331,-341.82498715,0.00013,2]
[346709528,1735223440359,-2149.99923283,0.00013,2]
[346709529,1735223440371,-4128.63986883,0.00013,2]
[346709530,1735223440383,-3933.36463944,0.00013,2]
[346709531,1735223440394,-2288.91045091,0.00013,2]
[346709532,1735223440405,-438.37999999,0.00013,2]
[346709533,1735223440416,-563.992002,0.00013,2]
[346709535,1735223440427,-346.08150003,0.00013,2]
[346709541,1735223440474,-161111.20332867,0.00013,2]
[346709543,1735223440484,-101188.44048538,0.00013,2]
[346709545,1735223440496,-16501.85691754,0.00013,2]
[346709547,1735223440507,-588.66491042,0.00013,2]
[346709555,1735223440574,-266.59541243,0.00013,2]
[346709574,1735223440756,-33022.58991213,0.00013,2]
[346709576,1735223440767,-1862.54424,0.00013,2]
[346709578,1735223440779,-7901.67657273,0.00013,2]
[346709586,1735223440842,-1855.81208647,0.00013,2]
[346709588,1735223440854,-2409.1201533,0.00013,2]
[346709590,1735223440865,-644.82818535,0.00013,2]
[346709592,1735223440876,-260.44,0.00013,2]
[346709642,1735223443548,-1482.8490538,0.00011929,2]
[346709643,1735223443558,-1482.8490538,0.00011929,2]
[346709644,1735223443567,-1482.8490538,0.00011929,2]
[346709645,1735223443577,-1482.8490538,0.00011929,2]
[346709646,1735223443587,-1482.8490538,0.00011929,2]
[346709647,1735223443596,-25774.69787899,0.00013,2]
[346709648,1735223443607,-664.717,0.00013,2]
[346709649,1735223443619,-3919.74300294,0.00013,2]
[346709650,1735223443630,-24010.25,0.00013,2]
[346709651,1735223443642,-41723.83334857,0.00013,2]
[346709652,1735223443714,-1593926.94336759,0.00013,2]
[346709653,1735223443729,-316.32583358,0.00013,2]
[346709654,1735223443740,-2516.16206871,0.00013,2]
[346709655,1735223443751,-1471.63580912,0.00013,2]
[346709656,1735223443763,-7714.896462,0.00013,2]
[346709657,1735223443775,-1207.38541534,0.00013,2]
[346709658,1735223443792,-251.579918,0.00013,2]
[346709659,1735223443804,-4817.62646549,0.00013,2]
[346709660,1735223443851,-9627.8,0.00013,2]
[346709661,1735223443967,-1482.8490538,0.00011929,2]
[346709662,1735223443977,-14132.45502607,0.00013,2]
[346709663,1735223443988,-20252.04194209,0.00013,2]
[346709664,1735223443999,-24702.30326925,0.00013,2]
[346709665,1735223444010,-345.52999999,0.00013,2]
[346709666,1735223444021,-383.20020393,0.00013,2]
[346709667,1735223444035,-578.58314681,0.00013,2]
[346709668,1735223444046,-468.8786624,0.00013,2]
[346709669,1735223444058,-459.4436244,0.00013,2]
[346709670,1735223444069,-578.349716,0.00013,2]
[346709671,1735223444080,-427.42,0.00013,2]
[346709672,1735223444092,-513.4034575,0.00013,2]
[346709673,1735223444103,-567.93,0.00013,2]
[346709674,1735223444114,-475.5,0.00013,2]
[346709675,1735223444125,-602.72741978,0.00013,2]
[346709676,1735223444137,-954.6,0.00013,2]
[346709677,1735223444148,-764.72434,0.00013,2]
[346709678,1735223444160,-2177.02760022,0.00013,2]
[346709682,1735223446276,-740.40033588,0.00011929,2]
[346709683,1735223446345,-742.44871792,0.00011929,2]
[346709684,1735223446355,-216.65128208,0.00011929,2]
[346709685,1735223446366,-1266.19777172,0.00011929,2]
[346709686,1735223446375,-1482.8490538,0.00011929,2]
[346709687,1735223446385,-1482.8480538,0.00011929,2]
[346709688,1735223446394,-73632.31939939,0.00013,2]
[346709689,1735223446406,-564.22581676,0.00013,2]
[346709690,1735223446417,-1281.46614566,0.00013,2]
[346709691,1735223446433,-254.25,0.00013,2]
[346709692,1735223446444,-5810.66036473,0.00013,2]
[346709693,1735223446455,-556.78398471,0.00013,2]
[346709694,1735223446483,-2116.949137,0.00013,2]
[346709695,1735223446495,-729.12371714,0.00013,2]
[346709696,1735223446506,-175389.60672001,0.00013,2]
[346709697,1735223446541,-3950.78810474,0.00013,2]
[346709699,1735223446586,-50000.11973999,0.00013,2]
[346709701,1735223446619,-4919.07120143,0.00013,2]
[346709702,1735223446630,-2946.36745992,0.00013,2]
[346709703,1735223446642,-279.03799999,0.00013,2]
[346709740,1735224316900,720.38235264,1.6e-05,5]
[346709810,1735224632212,-150.4,0.00010137,2]
[346709811,1735224632222,-203.3150481,0.0001264,2]
[346709812,1735224632232,-2134.176,0.0001274,2]
[346709813,1735224632241,-162.431,0.0001274,2]
[346709814,1735224632250,-743.87515383,0.0001274,2]
[346709815,1735224632260,-280.24438677,0.000129,2]
[346709816,1735224632271,-203.3150481,0.000129,2]
[346709817,1735224632281,-150.0,0.00012959,2]
[346709818,1735224632290,-500.0,0.00012973,2]
[346709819,1735224632299,-1000.0,0.00012999,2]
[346709820,1735224632309,-9334.21677001,0.00013,2]
[346709821,1735224632320,-525334.96191218,0.00013,2]
[346709822,1735224632330,-450.0,0.00013,2]
[346709823,1735224632339,-3582.0,0.00013,2]
[346709824,1735224632349,-151.0,0.0001326,2]
[346709825,1735224632358,-162.69,0.00014247,2]
[346709826,1735224632367,-752.41,0.00014521,2]
[346709827,1735224632376,-250.0,0.00014788,2]
[346709828,1735224632386,-6163.65632659,0.00015,2]
[346709829,1735224632397,-6068.0,0.00015,2]
[346709830,1735224632406,-500.0,0.00015,2]
[346709831,1735224632416,-21091.19,0.0001548,2]
[346709832,1735224632425,-500.0,0.00015964,2]
[346709833,1735224632434,-500.0,0.00015964,2]
[346709834,1735224632444,-499.52,0.00016294,2]
[346709835,1735224632454,-616.4,0.00016306,2]
[346709836,1735224632463,-2751.0,0.00016313,2]
[346709837,1735224632472,-200.0,0.00016352,2]
[346709838,1735224632483,-250.0,0.00016388,2]
[346709839,1735224632493,-184.02,0.0001639,2]
[346709840,1735224632503,-82292.36,0.0001639,2]
[346709841,1735224632513,-1000.0,0.00016397,2]
[346709842,1735224632523,-400.0,0.00016428,2]
[346709843,1735224632533,-406.33,0.00016473,2]
[346709844,1735224632543,-150.0,0.00016668,2]
[346709845,1735224632552,-150.0,0.00016668,2]
[346709846,1735224632562,-150.0,0.00016668,2]
[346709847,1735224632571,-150.06,0.00016694,30]
[346709848,1735224632580,-752.41,0.00016785,2]
[346709849,1735224632590,-162.83,0.00016813,2]
[346709850,1735224632601,-155.81,0.00016872,2]
[346709851,1735224632610,-500.0,0.00017,2]
[346709852,1735224632619,-550.0,0.00017,2]
[346709853,1735224632629,-2175.36,0.00017099,2]
[346709854,1735224632639,-2175.36,0.00017103,2]
[346709855,1735224632648,-2175.36,0.00017108,2]
[346709859,1735224632658,-2175.36,0.00017112,2]
[346709863,1735224632667,-2175.36,0.00017117,2]
[346709867,1735224632676,-2175.36,0.00017121,2]
[346709871,1735224632686,-2175.36,0.00017126,2]
[346709873,1735224632695,-2175.36,0.0001713,2]
[346709875,1735224632704,-2175.36,0.00017135,2]
[346709877,1735224632713,-2175.36,0.00017139,2]
[346709879,1735224632723,-2175.36,0.00017144,2]
[346709881,1735224632732,-703.17,0.00017148,2]
[346709882,1735224632741,-2175.36,0.00017148,2]
[346709884,1735224632750,-2175.36,0.00017153,2]
[346709885,1735224632759,-2175.36,0.00017157,2]
[346709887,1735224632768,-2175.36,0.00017162,2]
[346709889,1735224632777,-2175.36,0.00017166,2]
[346709891,1735224632787,-2175.36,0.00017171,2]
[346709893,1735224632796,-2175.36,0.00017175,2]
[346709895,1735224632806,-2175.36,0.0001718,2]
[346709897,1735224632817,-2175.36,0.00017184,2]
[346709899,1735224632828,-4524.16149997,0.00017204,2]
[346709901,1735224632839,-150.0,0.00017286,2]
[346709903,1735224632848,-500.0,0.00017334,2]
[346709905,1735224632857,-500.0,0.0001748,2]
[346709907,1735224632867,-500.0,0.0001748,2]
[346709909,1735224632876,-1000.0,0.00017534,2]
[346709911,1735224632885,-1000.0,0.00017561,2]
[346709912,1735224632896,-1000.0,0.00017589,2]
[346709913,1735224632905,-463.403,0.0001759,2]
[346709914,1735224632914,-1000.0,0.00017616,2]
[346709915,1735224632923,-1000.0,0.00017643,2]
[346709916,1735224632933,-1000.0,0.00017671,2]
[346709917,1735224632943,-1000.0,0.00017698,2]
[346709918,1735224632952,-1000.0,0.00017726,2]
[346709919,1735224632961,-1000.0,0.00017753,2]
[346709920,1735224632970,-300.0,0.00017761,2]
[346709921,1735224632981,-1000.0,0.0001778,2]
[346709922,1735224632990,-1000.0,0.00017808,2]
[346709923,1735224633001,-1000.0,0.00017835,2]
[346709924,1735224633010,-1000.0,0.00017863,2]
[346709925,1735224633019,-1000.0,0.0001789,2]
[346709926,1735224633029,-4244.47689357,0.000179,2]
[346709927,1735224633040,-200.0,0.000179,6]
[346709928,1735224633050,-150.0,0.00017903,2]
[346709929,1735224633059,-200.0,0.00017911,2]
[346709930,1735224633068,-1000.0,0.00017917,2]
[346709931,1735224633079,-1000.0,0.00017945,2]
[346709932,1735224633090,-1000.0,0.00017972,2]
[346709933,1735224633099,-2011.0,0.00017995,2]
[346709934,1735224633110,-1268.929,0.00017995,2]
[346709935,1735224633122,-566.231,0.00017995,2]
[346709936,1735224633132,-633.0,0.00017995,2]
[346709937,1735224633145,-150.291,0.00017995,2]
[346709938,1735224633154,-1899.0,0.00017995,2]
[346709939,1735224633164,-821.0,0.00017995,2]
[346709940,1735224633174,-739.618,0.00017995,2]
[346709941,1735224633184,-3771.0,0.00017995,2]
[346709942,1735224633194,-924.005,0.00017995,2]
[346709943,1735224633204,-3683.0,0.00017995,2]
[346709944,1735224633215,-536.0,0.00017995,2]
[346709945,1735224633225,-150.0,0.00017995,2]
[346709946,1735224633236,-212.549,0.00017995,2]
[346709947,1735224633246,-1170.0,0.00017995,2]
[346709948,1735224633256,-3888.0,0.00017995,2]
[346709949,1735224633267,-9594.0,0.00017995,2]
[346709950,1735224633278,-2000.0,0.00018,2]
[346709951,1735224633287,-1000.0,0.00018,2]
[346709952,1735224633297,-1000.0,0.00018027,2]
[346709953,1735224633307,-1000.0,0.00018054,2]
[346709954,1735224633317,-1000.0,0.00018082,2]
[346709955,1735224633327,-1000.0,0.00018109,2]
[346709956,1735224633338,-616.0235065,0.00018136,2]
[346709957,1735224633348,-169.02,0.00018238,2]
[346709958,1735224633358,-152.0,0.00018238,3]
[346709959,1735224633367,-500.0,0.000183,6]
[346709960,1735224633377,-555.31,0.00018356,2]
[346709961,1735224633387,-500.0,0.00018374,2]
[346709962,1735224633399,-255.7,0.000184,2]
[346709963,1735224633409,-800.0,0.000184,6]
[346709964,1735224633419,-220.0,0.00018421,2]
[346709965,1735224633429,-643.99690965,0.00018422,2]
[346709966,1735224633439,-1000.0,0.00018446,2]
[346709967,1735224633449,-969.64654905,0.0001848,2]
[346709968,1735224633458,-4344.75183794,0.00018498,7]
[346709969,1735224633468,-158.0,0.000185,2]
[346709970,1735224633478,-10161.91370347,0.000185,2]
[346709971,1735224633488,-1152.0,0.000185,6]
[346709972,1735224633498,-2000.0,0.000185,2]
[346709973,1735224633508,-2000.0,0.000185,2]
[346709974,1735224633518,-2000.0,0.000185,2]
[346709975,1735224633528,-2000.0,0.000185,2]
[346709976,1735224633537,-2000.0,0.000185,2]
[346709977,1735224633547,-1000.0,0.000185,6]
[346709978,1735224633557,-150.0,0.00018521,2]
[346709979,1735224633566,-802.0,0.00018521,2]
[346709980,1735224633576,-266.5098,0.00018521,2]
[346709981,1735224633586,-2341.9465,0.00018521,2]
[346709982,1735224633595,-2000.0,0.00018521,2]
[346709983,1735224633605,-2000.0,0.00018521,2]
[346709984,1735224633615,-2000.0,0.00018521,2]
[346709985,1735224633625,-2000.0,0.00018521,2]
[346709986,1735224633635,-2000.0,0.00018521,2]
[346709987,1735224633647,-1000.0,0.00018521,2]
[346709988,1735224633656,-278894.94,0.00018521,2]
[346709989,1735224633875,-5558.86519879,0.00018522,2]
[346709990,1735224633894,-741659.27680537,0.00018522,2]
[346709991,1735224634060,-2903.56852344,0.00018522,2]
[346709992,1735224634090,-34995.93381571,0.00018522,2]
[346709993,1735224634123,-136577.00007521,0.00018522,2]
[346709994,1735224634134,-24590.95120138,0.00018522,2]
[346709995,1735224634152,-1699.33854138,0.00018522,2]
[346709996,1735224634189,-600.0,0.00018522,2]
[346709997,1735224634200,-400.67,0.00018522,2]
[346709998,1735224634212,-970.0,0.00018522,2]
[346709999,1735224634224,-3320.7,0.00018522,2]
[346710000,1735224634235,-4615.6,0.00018522,2]
[346710001,1735224634246,-2301.0,0.00018522,2]
[346710002,1735224634257,-290.8,0.00018522,2]
[346710003,1735224634268,-439.8200001,0.00018522,2]
[346710004,1735224634320,-1559.3669999,0.00018522,2]
[346710008,1735224638435,-310.24010705,0.0001264,2]
[346710009,1735224638447,-1687.27723876,0.0001264,2]
[346710010,1735224638457,-150.0,0.00017995,2]
[346710011,1735224638467,-67.74760664,0.00017995,2]
[346710012,1735224638479,-1034.25239336,0.00017995,2]
[346710013,1735224638488,-368.74760664,0.00018,2]
[346710014,1735224638500,-1147.0943395,0.00018,2]
[346710015,1735224638512,-1082.45,0.00018,2]
[346710016,1735224638561,-2354.98159659,0.00018,2]
[346710017,1735224638573,-517.34158728,0.00018,2]
[346710018,1735224638584,-642.39991809,0.00018,2]
[346710019,1735224638596,-1135.7570017,0.00018,2]
[346710020,1735224638608,-29333.30144401,0.00018,2]
[346710021,1735224638881,-2669.85265,0.00018,2]
[346710024,1735224638932,-13767.68896068,0.00018,2]
[346710045,1735224640307,-2283.56986854,0.00018,2]
[346710046,1735224640385,-13394.45132408,0.00018,2]
[346710047,1735224640463,-823.375,0.00018,2]
[346710048,1735224640526,-784.87126048,0.00018,2]
[346710049,1735224640537,-28234.21344021,0.00018,2]
[346710050,1735224640548,-48446.94162961,0.00018,2]
[346710061,1735224643191,-683.665,0.00018,2]
[346710062,1735224643273,-95693.80451886,0.00018,2]
[346710063,1735224643284,-432.0,0.00018,2]
[346710064,1735224643295,-79429.42782047,0.00018,2]
[346710065,1735224643310,-1594.61578653,0.00018,2]
[346710067,1735224643506,-47800.00674536,0.00018,2]
[346710068,1735224643517,-18017.202,0.00018,2]
[346710082,1735224646204,-256.00451223,0.00018,2]
[346710083,1735224646215,-7797.81488646,0.00018,2]
[346710084,1735224646227,-3098.43753977,0.00018,2]
[346710085,1735224646238,-420.81962303,0.00018,2]
[346710086,1735224646250,-1353.77892126,0.00018,2]
[346710087,1735224646261,-424.66999967,0.00018,2]
[346710088,1735224646272,-1098.0,0.00018,2]
[346710089,1735224646283,-266.34815154,0.00018,2]
[346710090,1735224646295,-2465.23679469,0.00018,2]
[346710091,1735224646312,-57079.56259347,0.00018,2]
[346710092,1735224646617,-27758.91865755,0.00018,2]
[346710303,1735225656688,46879.0,0.0002,120]
[346710332,1735225832332,-300.0,0.00010135,2]
[346710333,1735225832342,-26402.50000001,0.00010136,2]
[346710334,1735225832354,-1090.52064337,0.00010136,2]
[346710335,1735225832365,-479.3635473,0.00010136,2]
[346710336,1735225832378,-1170.05,0.00010136,2]
[346710337,1735225832424,-961.67907138,0.00010136,2]
[346710338,1735225832435,-4494.0925053,0.00010136,2]
[346710339,1735225832449,-1987.100005,0.00010136,2]
[346710340,1735225832460,-1905.92084559,0.00010136,2]
[346710341,1735225832471,-7461.91580602,0.00010136,2]
[346710344,1735225832706,-1916.437789,0.00010136,2]
[346710345,1735225832717,-2308.34147264,0.00010136,2]
[346710346,1735225832728,-4307.4185581,0.00010136,2]
[346710347,1735225832739,-327.41088722,0.00010136,2]
[346710348,1735225832809,-1239.35,0.00010136,2]
[346710352,1735225832886,-40060.64886907,0.00010136,2]
[346710354,1735225832896,-195.85,0.00010137,2]
[346710355,1735225832907,-420.0,0.00011147,2]
[346710356,1735225832916,-587.0,0.0001226,2]
[346710357,1735225832925,-2821.08418024,0.000129,2]
[346710358,1735225832935,-450.0,0.00013,2]
[346710359,1735225832946,-2821.08418024,0.00013249,2]
[346710360,1735225832956,-313.0,0.00013484,2]
[346710361,1735225832966,-2821.08418024,0.00013598,2]
[346710362,1735225832975,-115587.65911016,0.00013699,10]
[346710363,1735225832985,-204.21,0.00013699,2]
[346710364,1735225832994,-791.12,0.00014001,2]
[346710365,1735225833003,-500.0,0.00015,2]
[346710366,1735225833013,-200.0,0.00015267,2]
[346710367,1735225833023,-613.66,0.00015834,2]
[346710368,1735225833033,-151.0,0.00015892,2]
[346710369,1735225833044,-344.35,0.00015911,2]
[346710370,1735225833054,-200.0,0.00015935,2]
[346710371,1735225833063,-500.0,0.00015964,2]
[346710372,1735225833073,-500.0,0.00015964,2]
[346710373,1735225833082,-979.13,0.00015972,2]
[346710374,1735225833093,-23900.0,0.00016061,2]
[346710375,1735225833102,-151.33,0.00016131,2]
[346710376,1735225833111,-3556.45,0.00016227,2]
[346710377,1735225833120,-179.03,0.00016236,2]
[346710378,1735225833130,-791.12,0.00016265,2]
[346710379,1735225833140,-250.0,0.00016423,2]
[346710380,1735225833149,-250.0,0.00016447,2]
[346710381,1735225833160,-1500.0,0.00016635,2]
[346710382,1735225833170,-186.74,0.00016712,2]
[346710383,1735225833178,-293.78,0.00016769,2]
[346710384,1735225833188,-916.68,0.00016784,2]
[346710385,1735225833198,-150.0,0.000168,2]
[346710386,1735225833207,-166.86,0.00016834,2]
[346710387,1735225833217,-18769.97555327,0.00017,2]
[346710388,1735225833227,-550.0,0.00017,2]
[346710389,1735225833236,-165.92,0.00017063,2]
[346710390,1735225833246,-165.92,0.00017085,2]
[346710391,1735225833255,-165.92,0.00017106,2]
[346710392,1735225833265,-165.92,0.00017127,2]
[346710393,1735225833274,-165.92,0.00017149,2]
[346710394,1735225833283,-186.82779095,0.00017234,2]
[346710395,1735225833293,-1000.0,0.0001725,2]
[346710396,1735225833302,-57876.58620907,0.0001729,2]
[346710397,1735225833314,-37663.41379093,0.0001729,2]
[346710398,1735225833324,-500.0,0.00017334,2]
[346710399,1735225833334,-152.0,0.00017461,3]
[346710400,1735225833343,-150.85,0.00017482,30]
[346710401,1735225833352,-460.122,0.0001759,2]
[346710402,1735225833362,-293.78,0.00017607,2]
[346710403,1735225833371,-3999.99,0.00017823,2]
[346710404,1735225833380,-6548.7913,0.00017873,2]
[346710405,1735225833390,-29676.5719,0.00017873,2]
[346710406,1735225833399,-1604.0316,0.000179,2]
[346710407,1735225833409,-1000.0,0.000179,2]
[346710408,1735225833418,-9832.96934742,0.000179,2]
[346710409,1735225833430,-571.2076922,0.000179,2]
[346710410,1735225833445,-14918.82296038,0.000179,2]
[346710411,1735225833455,-1287.99381931,0.000179,2]
[346710412,1735225833464,-172.12713795,0.000179,3]
[346710413,1735225833473,-200.76059425,0.0001791,2]
[346710414,1735225833483,-1178.0,0.00017973,2]
[346710415,1735225833492,-3877.0,0.00017973,2]